fUSD/lending_fUSD_20250623
["ID","MTS","AMOUNT","RATE_DAILY","PERIOD"]
[367094439,1750654300181,-151.0,0.00033917,30]
[367094440,1750654300193,-151.0,0.00033917,30]
[367094441,1750654300205,-151.0,0.00033917,30]
[367094442,1750654300216,-151.0,0.00033917,30]
[367094443,1750654300226,-151.0,0.00033917,30]
[367094444,1750654300236,-500.0,0.00033917,30]
[367094445,1750654300246,-151.0,0.00033917,30]
[367094446,1750654300256,-500.0,0.00033917,30]
[367094447,1750654300265,-156.587,0.00033917,30]
[367094448,1750654300275,-151.0,0.00033917,30]
[367094449,1750654300285,-151.0,0.00033917,30]
[367094450,1750654300294,-500.0,0.00033917,30]
[367094451,1750654300304,-151.0,0.00033917,30]
[367094452,1750654300314,-151.0,0.00033917,30]
[367094453,1750654300323,-518.5,0.00033917,30]
[367094454,1750654300333,-151.0,0.00033917,30]
[367094455,1750654300343,-162.380719,0.00033917,30]
[367094456,1750654300352,-156.587,0.00033917,30]
[367094457,1750654300362,-151.0,0.00033917,30]
[367094458,1750654300372,-500.0,0.00033917,30]
[367094459,1750654300382,-151.0,0.00033917,30]
[367094460,1750654300391,-151.0,0.00033917,30]
[367094461,1750654300401,-537.6845,0.00033917,30]
[367094462,1750654300411,-151.0,0.00033917,30]
[367094463,1750654300420,-162.380719,0.00033917,30]
[367094464,1750654300430,-168.3888056,0.00033917,30]
[367094465,1750654300439,-500.0,0.00033917,30]
[367094466,1750654300449,-151.0,0.00033917,30]
[367094467,1750654300459,-151.0,0.00033917,30]
[367094468,1750654300469,-151.0,0.00033917,30]
[367094469,1750654300479,-151.0,0.00033917,30]
[367094470,1750654300489,-151.0,0.00033917,30]
[367094471,1750654300498,-557.5788265,0.00033917,30]
[367094472,1750654300508,-168.3888056,0.00033917,30]
[367094473,1750654300518,-174.9673236,0.00033917,30]
[367094474,1750654300527,-500.0,0.00033917,30]
[367094475,1750654300536,-151.0,0.00033917,30]
[367094476,1750654300546,-151.0,0.00033917,30]
[367094477,1750654300555,-151.30467282,0.00033917,30]
[367094478,1750654300565,-151.0,0.00033917,30]
[367094479,1750654300575,-578.20924308,0.00033917,30]
[367094480,1750654300584,-151.0,0.00033917,30]
[367094481,1750654300594,-500.0,0.00033917,30]
[367094482,1750654300603,-174.61919141,0.00033917,30]
[367094483,1750654300613,-151.0,0.00033917,30]
[367094484,1750654300623,-151.0,0.00033917,30]
[367094485,1750654300632,-151.0,0.00033917,30]
[367094486,1750654300642,-151.0,0.00033917,30]
[367094487,1750654300651,-599.60298507,0.00033917,30]
[367094488,1750654300661,-500.0,0.00033917,30]
[367094489,1750654300670,-151.0,0.00033917,30]
[367094490,1750654300680,-181.08010149,0.00033917,30]
[367094491,1750654300689,-151.0,0.00033917,30]
[367094492,1750654300699,-151.0,0.00033917,30]
[367094493,1750654300708,-151.0,0.00033917,30]
[367094494,1750654300718,-500.0,0.00033917,30]
[367094495,1750654300728,-621.78829552,0.00033917,30]
[367094496,1750654300738,-151.0,0.00033917,30]
[367094497,1750654300748,-187.78006525,0.00033917,30]
[367094498,1750654300758,-151.0,0.00033917,30]
[367094499,1750654300768,-151.0,0.00033917,30]
[367094500,1750654301003,-151.0,0.00033917,30]
[367094501,1750654301013,-644.79446246,0.00033917,30]
[367094502,1750654301022,-500.0,0.00033917,30]
[367094503,1750654301032,-151.0,0.00033917,30]
[367094504,1750654301041,-194.72792766,0.00033917,30]
[367094505,1750654301050,-151.0,0.00033917,30]
[367094506,1750654301059,-151.0,0.00033917,30]
[367094507,1750654301069,-151.0,0.00033917,30]
[367094508,1750654301078,-668.65185757,0.00033917,30]
[367094509,1750654301087,-500.0,0.00033917,30]
[367094510,1750654301097,-151.0,0.00033917,30]
[367094511,1750654301106,-201.93286099,0.00033917,30]
[367094512,1750654301115,-151.0,0.00033917,30]
[367094513,1750654301125,-151.0,0.00033917,30]
[367094514,1750654301134,-500.0,0.00033917,30]
[367094515,1750654301143,-151.0,0.00033917,30]
[367094516,1750654301153,-500.0,0.00033917,30]
[367094517,1750654301163,-151.0,0.00033917,30]
[367094518,1750654301172,-693.3919763,0.00033917,30]
[367094519,1750654301182,-151.0,0.00033917,30]
[367094520,1750654301191,-151.0,0.00033917,30]
[367094521,1750654301212,-209.40437684,0.00033917,30]
[367094522,1750654301222,-153.06184516,0.00033917,30]
[367094523,1750654301231,-500.0,0.00033917,30]
[367094524,1750654301240,-500.0,0.00033917,30]
[367094525,1750654301250,-151.0,0.00033917,30]
[367094526,1750654301259,-151.0,0.00033917,30]
[367094527,1750654301268,-719.04747942,0.00033917,30]
[367094528,1750654301278,-151.0,0.00033917,30]
[367094529,1750654301287,-217.15233878,0.00033917,30]
[367094530,1750654301296,-151.0,0.00033917,30]
[367094531,1750654301306,-500.0,0.00033917,30]
[367094532,1750654301315,-500.0,0.00033917,30]
[367094533,1750654301324,-151.0,0.00033917,30]
[367094534,1750654301334,-151.0,0.00033917,30]
[367094535,1750654301343,-745.65223616,0.00033917,30]
[367094536,1750654301353,-225.18697532,0.00033917,30]
[367094537,1750654301362,-154.54683743,0.00033917,30]
[367094538,1750654301371,-151.0,0.00033917,30]
[367094539,1750654301381,-500.0,0.00033917,30]
[367094540,1750654301390,-232.75766949,0.00033917,30]
[367094541,1750654301399,-500.0,0.00033917,30]
[367094542,1750654301408,-773.2413689,0.00033917,30]
[367094543,1750654301417,-151.0,0.00033917,30]
[367094544,1750654301426,-233.51889341,0.00033917,30]
[367094545,1750654301435,-151.0,0.00033917,30]
[367094546,1750654301445,-500.0,0.00033917,30]
[367094547,1750654301455,-801.85129955,0.00033917,30]
[367094548,1750654301464,-242.15909246,0.00033917,30]
[367094549,1750654301474,-500.0,0.00033917,30]
[367094550,1750654301483,-151.0,0.00033917,30]
[367094551,1750654301493,-151.0,0.00033917,30]
[367094552,1750654301502,-251.11897888,0.00033917,30]
[367094553,1750654301511,-500.0,0.00033917,30]
[367094554,1750654301521,-500.0,0.00033917,30]
[367094555,1750654301530,-500.0,0.00033917,30]
[367094556,1750654301542,-831.51979763,0.00033917,30]
[367094557,1750654301552,-151.0,0.00033917,30]
[367094558,1750654301562,-151.0,0.00033917,30]
[367094559,1750654301572,-260.4103811,0.00033917,30]
[367094560,1750654301582,-646.24989934,0.00033917,30]
[367094561,1750654301592,-500.0,0.00033917,30]
[367094562,1750654301601,-862.28603014,0.00033917,30]
[367094563,1750654301610,-500.0,0.00033917,30]
[367094564,1750654301620,-270.0455652,0.00033917,30]
[367094565,1750654301629,-151.0,0.00033917,30]
[367094566,1750654301638,-500.0,0.00033917,30]
[367094567,1750654301648,-151.0,0.00033917,30]
[367094568,1750654301657,-280.03725112,0.00033917,30]
[367094569,1750654301667,-151.0,0.00033917,30]
[367094570,1750654301675,-151.0,0.00033917,30]
[367094571,1750654301685,-500.0,0.00033917,30]
[367094572,1750654301694,-151.0,0.00033917,30]
[367094573,1750654301703,-151.0,0.00033917,30]
[367094574,1750654301712,-290.39862941,0.00033917,30]
[367094575,1750654301721,-151.0,0.00033917,30]
[367094576,1750654301730,-500.0,0.00033917,30]
[367094577,1750654301739,-151.0,0.00033917,30]
[367094578,1750654301748,-301.1433787,0.00033917,30]
[367094579,1750654301757,-151.0,0.00033917,30]
[367094580,1750654301766,-500.0,0.00033917,30]
[367094581,1750654301775,-151.0,0.00033917,30]
[367094582,1750654301784,-500.0,0.00033917,30]
[367094583,1750654301793,-500.0,0.00033917,30]
[367094584,1750654301802,-500.0,0.00033917,30]
[367094585,1750654301811,-151.0,0.00033917,30]
[367094586,1750654301821,-500.0,0.00033917,30]
[367094587,1750654301830,-500.0,0.00033917,30]
[367094588,1750654301838,-151.53071045,0.00033917,30]
[367094589,1750654301847,-1000.0,0.00033917,30]
[367094590,1750654301857,-500.0,0.00033917,30]
[367094591,1750654301866,-200.0,0.00033917,30]
[367094592,1750654301875,-500.0,0.00033917,30]
[367094593,1750654301884,-1000.0,0.00033917,30]
[367094594,1750654301893,-500.0,0.00033917,30]
[367094595,1750654301902,-368.12440021,0.00033917,30]
[367094596,1750654301911,-151.0,0.00033917,30]
[367094597,1750654301920,-207.4,0.00033917,30]
[367094598,1750654301929,-1000.0,0.00033917,30]
[367094599,1750654301938,-500.0,0.00033917,30]
[367094600,1750654301948,-215.0738,0.00033917,30]
[367094601,1750654301957,-156.587,0.00033917,30]
[367094602,1750654301966,-1000.0,0.00033917,30]
[367094603,1750654301975,-500.0,0.00033917,30]
[367094604,1750654301985,-223.0315306,0.00033917,30]
[367094605,1750654301994,-162.380719,0.00033917,30]
[367094606,1750654302003,-1000.0,0.00033917,30]
[367094607,1750654302012,-500.0,0.00033917,30]
[367094608,1750654302022,-168.3888056,0.00033917,30]
[367094609,1750654302031,-231.28369723,0.00033917,30]
[367094610,1750654302041,-1000.0,0.00033917,30]
[367094611,1750654302050,-500.0,0.00033917,30]
[367094612,1750654302061,-174.61919141,0.00033917,30]
[367094613,1750654302070,-200.0,0.00033917,30]
[367094614,1750654302080,-1000.0,0.00033917,30]
[367094615,1750654302089,-500.0,0.00033917,30]
[367094616,1750654302100,-239.84119403,0.00033917,30]
[367094617,1750654302109,-181.08010149,0.00033917,30]
[367094618,1750654302119,-200.0,0.00033917,30]
[367094619,1750654302132,-1000.0,0.00033917,30]
[367094620,1750654302142,-500.0,0.00033917,30]
[367094621,1750654302152,-248.71531821,0.00033917,30]
[367094622,1750654302163,-244.39904965,0.00033917,30]
[367094623,1750654302174,-200.0,0.00033917,30]
[367094624,1750654302185,-1000.0,0.00033917,30]
[367094625,1750654302195,-200.0,0.00033917,30]
[367094626,1750654302205,-500.0,0.00033917,30]
[367094627,1750654302215,-257.91778498,0.00033917,30]
[367094628,1750654302226,-200.0,0.00033917,30]
[367094629,1750654302235,-1000.0,0.00033917,30]
[367094630,1750654302244,-500.0,0.00033917,30]
[367094631,1750654302255,-267.46074303,0.00033917,30]
[367094632,1750654302265,-200.0,0.00033917,30]
[367094633,1750654302275,-1000.0,0.00033917,30]
[367094634,1750654302285,-277.35679052,0.00033917,30]
[367094635,1750654302296,-500.0,0.00033917,30]
[367094636,1750654302305,-1000.0,0.00033917,30]
[367094637,1750654302316,-287.61899177,0.00033917,30]
[367094638,1750654302325,-151.0,0.00033917,30]
[367094639,1750654302334,-201.36758019,0.00033917,30]
[367094640,1750654302344,-500.0,0.00033917,30]
[367094641,1750654302353,-1000.0,0.00033917,30]
[367094642,1750654302363,-151.0,0.00033917,30]
[367094643,1750654302372,-500.0,0.00033917,30]
[367094644,1750654302382,-298.26089446,0.00033917,30]
[367094645,1750654302391,-1000.0,0.00033917,30]
[367094646,1750654302401,-151.0,0.00033917,30]
[367094647,1750654302411,-309.29654756,0.00033917,30]
[367094648,1750654302420,-500.0,0.00033917,30]
[367094649,1750654302430,-151.87550536,0.00033917,30]
[367094650,1750654302440,-320.74051982,0.00033917,30]
[367094651,1750654302450,-1000.0,0.00033917,30]
[367094652,1750654302459,-500.0,0.00033917,30]
[367094653,1750654302469,-332.60791905,0.00033917,30]
[367094654,1750654302478,-1000.0,0.00033917,30]
[367094655,1750654302488,-500.0,0.00033917,30]
[367094656,1750654302497,-344.91441206,0.00033917,30]
[367094657,1750654302506,-1000.0,0.00033917,30]
[367094658,1750654302515,-500.0,0.00033917,30]
[367094659,1750654302525,-357.6762453,0.00033917,30]
[367094660,1750654302534,-1000.0,0.00033917,30]
[367094661,1750654302543,-500.0,0.00033917,30]
[367094662,1750654302552,-370.91026638,0.00033917,30]
[367094663,1750654302563,-1000.0,0.00033917,30]
[367094664,1750654302572,-500.0,0.00033917,30]
[367094665,1750654302582,-384.63394623,0.00033917,30]
[367094666,1750654302591,-1000.0,0.00033917,30]
[367094667,1750654302600,-500.0,0.00033917,30]
[367094668,1750654302610,-398.86540225,0.00033917,30]
[367094669,1750654302619,-500.0,0.00033917,30]
[367094670,1750654302629,-300.0,0.00033917,30]
[367094671,1750654302639,-300.0,0.00033917,30]
[367094672,1750654302649,-300.0,0.00033917,30]
[367094673,1750654302659,-300.0,0.00033917,30]
[367094674,1750654302668,-300.0,0.00033917,30]
[367094675,1750654302678,-300.0,0.00033917,30]
[367094676,1750654302687,-300.0,0.00033917,30]
[367094677,1750654302697,-300.0,0.00033917,30]
[367094678,1750654302706,-300.0,0.00033917,30]
[367094679,1750654302716,-300.0,0.00033917,30]
[367094680,1750654302725,-277.75468828,0.00033917,30]
[367094681,1750654302735,-151.0,0.00033924,7]
[367094682,1750654302744,-169.961682,0.00033924,7]
[367094683,1750654302753,-355.894565,0.00033924,7]
[367094684,1750654302762,-170.972628,0.00033924,7]
[367094685,1750654302772,-170.972628,0.00033924,7]
[367094686,1750654302781,-151.0,0.00033924,7]
[367094687,1750654302791,-3123.5918296,0.00033924,2]
[367094688,1750654302801,-854.0488765,0.00033924,2]
[367094689,1750654302810,-200.0,0.00033933,2]
[367094690,1750654302820,-151.0,0.00033933,2]
[367094691,1750654302829,-363.33721126,0.00033933,2]
[367094692,1750654302839,-200.0,0.00033933,2]
[367094693,1750654302848,-1000.0,0.00033933,2]
[367094694,1750654302857,-1000.0,0.00033933,2]
[367094695,1750654302867,-1000.0,0.00033933,2]
[367094696,1750654302876,-1000.0,0.00033933,2]
[367094697,1750654302885,-1000.0,0.00033933,2]
[367094698,1750654302895,-1000.0,0.00033933,2]
[367094699,1750654302904,-1000.0,0.00033933,2]
[367094700,1750654302914,-1000.0,0.00033933,2]
[367094701,1750654302923,-1005.05292866,0.00033933,2]
[367094702,1750654302932,-300.0,0.00033933,7]
[367094703,1750654302942,-168.0,0.00033936,2]
[367094704,1750654302951,-151.126457,0.00033939,60]
[367094705,1750654302961,-350.0,0.00033939,60]
[367094706,1750654302971,-4386.5564543,0.00033945,2]
[367094707,1750654302980,-10217.4894471,0.00033945,2]
[367094708,1750654302990,-151445.7733406,0.00033947,2]
[367094709,1750654303000,-202.201633,0.00033947,7]
[367094710,1750654303010,-202.201627,0.00033947,7]
[367094711,1750654303020,-1354.4854184,0.00033949,2]
[367094712,1750654303030,-5066.5101052,0.00033949,2]
[367094713,1750654303039,-44422.0440176,0.00033949,2]
[367094714,1750654303049,-1506.84285349,0.00033968,5]
[367094715,1750654303059,-1500.0,0.00033968,5]
[367094716,1750654303068,-500.0,0.0003397,7]
[367094717,1750654303077,-500.0,0.00033971,7]
[367094718,1750654303087,-614.31430361,0.00033971,7]
[367094719,1750654303096,-1329.282372,0.00033972,7]
[367094720,1750654303106,-6070.115518,0.00033972,7]
[367094721,1750654303115,-2875.886496,0.00033972,7]
[367094722,1750654303127,-264.506663,0.00033972,7]
[367094723,1750654303136,-151.073014,0.00033972,7]
[367094724,1750654303145,-508.48,0.00033972,7]
[367094725,1750654303154,-490.0,0.00033972,7]
[367094726,1750654303163,-656.58,0.00033972,7]
[367094727,1750654303173,-490.0,0.00033972,7]
[367094728,1750654303183,-490.0,0.00033972,7]
[367094729,1750654303192,-738.78,0.00033972,7]
[367094730,1750654303202,-564.19,0.00033972,7]
[367094731,1750654303213,-584.11190326,0.00033972,7]
[367094732,1750654303223,-490.0,0.00033972,7]
[367094733,1750654303232,-490.0,0.00033972,7]
[367094734,1750654303242,-513.44317708,0.00033972,7]
[367094735,1750654303256,-490.0,0.00033972,7]
[367094736,1750654303266,-690.65,0.00033972,7]
[367094737,1750654303275,-490.0,0.00033972,7]
[367094738,1750654303285,-807.71,0.00033972,7]
[367094739,1750654303295,-490.0,0.00033972,7]
[367094740,1750654303305,-490.0,0.00033972,7]
[367094741,1750654303314,-490.0,0.00033972,7]
[367094742,1750654303323,-490.0,0.00033972,7]
[367094743,1750654303333,-490.0,0.00033972,7]
[367094744,1750654303343,-1000.0,0.00033972,7]
[367094745,1750654303352,-805.72,0.00033972,7]
[367094746,1750654303365,-280.0,0.00033972,7]
[367094747,1750654303374,-490.0,0.00033972,7]
[367094748,1750654303384,-490.0,0.00033972,7]
[367094749,1750654303393,-490.0,0.00033972,7]
[367094750,1750654303403,-1202.28,0.00033972,7]
[367094751,1750654303413,-490.0,0.00033972,7]
[367094752,1750654303422,-490.0,0.00033972,7]
[367094753,1750654303432,-490.0,0.00033972,7]
[367094754,1750654303442,-490.0,0.00033972,7]
[367094755,1750654303451,-907.09,0.00033972,7]
[367094756,1750654303461,-542.83,0.00033972,7]
[367094757,1750654303471,-490.0,0.00033972,7]
[367094758,1750654303480,-490.0,0.00033972,7]
[367094759,1750654303491,-490.0,0.00033972,7]
[367094760,1750654303501,-778.99,0.00033972,7]
[367094761,1750654303511,-611.99,0.00033972,7]
[367094762,1750654303520,-515.65,0.00033972,7]
[367094763,1750654303531,-1124.48,0.00033972,7]
[367094764,1750654303541,-490.0,0.00033972,7]
[367094765,1750654303550,-490.0,0.00033972,7]
[367094766,1750654303561,-490.0,0.00033972,7]
[367094767,1750654303570,-490.0,0.00033972,7]
[367094768,1750654303579,-1085.93,0.00033972,7]
[367094769,1750654303588,-976.4,0.00033972,7]
[367094770,1750654303598,-490.0,0.00033972,7]
[367094771,1750654303607,-490.0,0.00033972,7]
[367094772,1750654303616,-490.0,0.00033972,7]
[367094773,1750654303626,-678.6,0.00033972,7]
[367094774,1750654303635,-746.82,0.00033972,7]
[367094775,1750654303645,-192.54729207,0.00033972,7]
[367094776,1750654303654,-490.0,0.00033972,7]
[367094777,1750654303664,-1279.39,0.00033972,7]
[367094778,1750654303673,-720.74,0.00033972,7]
[367094779,1750654303683,-586.39,0.00033972,7]
[367094780,1750654303692,-1092.41,0.00033972,7]
[367094781,1750654303702,-490.0,0.00033972,7]
[367094782,1750654303711,-490.0,0.00033972,7]
[367094783,1750654303721,-983.31,0.00033972,7]
[367094784,1750654303730,-490.0,0.00033972,7]
[367094785,1750654303739,-654.35,0.00033972,7]
[367094786,1750654303748,-388.95787134,0.00033972,7]
[367094787,1750654303758,-197.4050537,0.00033972,7]
[367094788,1750654303767,-530.6302683,0.00033972,7]
[367094789,1750654303777,-490.0,0.00033972,7]
[367094790,1750654303786,-490.0,0.00033972,7]
[367094791,1750654303795,-490.0,0.00033972,7]
[367094792,1750654303804,-490.0,0.00033972,7]
[367094793,1750654303814,-490.0,0.00033972,7]
[367094794,1750654303823,-499.23603094,0.00033972,7]
[367094795,1750654303833,-870.42,0.00033972,7]
[367094796,1750654303842,-490.0,0.00033972,7]
[367094797,1750654303851,-491.57,0.00033972,7]
[367094798,1750654303860,-490.0,0.00033972,7]
[367094799,1750654303869,-490.0,0.00033972,7]
[367094800,1750654303878,-490.0,0.00033972,7]
[367094801,1750654303887,-264.506664,0.00033972,7]
[367094802,1750654303896,-490.0,0.00033972,7]
[367094803,1750654303905,-490.0,0.00033972,7]
[367094804,1750654303915,-544.93,0.00033972,7]
[367094805,1750654303925,-490.0,0.00033972,7]
[367094806,1750654303936,-490.0,0.00033972,7]
[367094807,1750654303946,-490.0,0.00033972,7]
[367094808,1750654303955,-168.519837,0.00033972,7]
[367094809,1750654303965,-490.0,0.00033972,7]
[367094810,1750654303974,-151.073013,0.00033972,7]
[367094811,1750654303984,-571.98,0.00033972,7]
[367094812,1750654303993,-490.0,0.00033972,7]
[367094813,1750654304002,-490.0,0.00033972,7]
[367094814,1750654304011,-490.0,0.00033972,7]
[367094815,1750654304021,-819.33,0.00033972,7]
[367094816,1750654304030,-705.49,0.00033972,7]
[367094817,1750654304039,-490.0,0.00033972,7]
[367094818,1750654304048,-490.0,0.00033972,7]
[367094819,1750654304057,-490.0,0.00033972,7]
[367094820,1750654304066,-490.0,0.00033972,7]
[367094821,1750654304075,-1082.01,0.00033972,7]
[367094822,1750654304085,-490.0,0.00033972,7]
[367094823,1750654304094,-490.0,0.00033972,7]
[367094824,1750654304103,-490.0,0.00033972,7]
[367094825,1750654304112,-841.29,0.00033972,7]
[367094826,1750654304122,-875.21,0.00033972,7]
[367094827,1750654304133,-490.0,0.00033972,7]
[367094828,1750654304143,-490.0,0.00033972,7]
[367094829,1750654304152,-500.0,0.00033972,7]
[367094830,1750654304162,-152.513498,0.00033972,7]
[367094831,1750654304172,-638.96,0.00033972,7]
[367094832,1750654304181,-490.0,0.00033972,7]
[367094833,1750654304190,-1706.22,0.00033972,7]
[367094834,1750654304201,-490.0,0.00033972,7]
[367094835,1750654304210,-490.0,0.00033972,7]
[367094836,1750654304219,-490.0,0.00033972,7]
[367094837,1750654304228,-490.0,0.00033972,7]
[367094838,1750654304237,-490.0,0.00033972,7]
[367094839,1750654304246,-794.16,0.00033972,7]
[367094840,1750654304255,-2369.16,0.00033972,7]
[367094841,1750654304263,-1745.48,0.00033972,7]
[367094842,1750654304273,-567.29,0.00033972,7]
[367094843,1750654304282,-498.52,0.00033972,7]
[367094844,1750654304291,-490.0,0.00033972,7]
[367094845,1750654304300,-213.574319,0.00033972,7]
[367094846,1750654304309,-490.0,0.00033972,7]
[367094847,1750654304318,-664.52,0.00033972,7]
[367094848,1750654304328,-1705.17,0.00033972,7]
[367094849,1750654304337,-490.0,0.00033972,7]
[367094850,1750654304347,-490.0,0.00033972,7]
[367094851,1750654304356,-490.0,0.00033972,7]
[367094852,1750654304365,-490.0,0.00033972,7]
[367094853,1750654304375,-490.0,0.00033972,7]
[367094854,1750654304384,-902.42,0.00033972,7]
[367094855,1750654304393,-1071.38,0.00033972,7]
[367094856,1750654304403,-490.0,0.00033972,7]
[367094857,1750654304412,-490.0,0.00033972,7]
[367094858,1750654304421,-490.0,0.00033972,7]
[367094859,1750654304430,-490.0,0.00033972,7]
[367094860,1750654304439,-490.0,0.00033972,7]
[367094861,1750654304449,-490.0,0.00033972,7]
[367094862,1750654304458,-490.0,0.00033972,7]
[367094863,1750654304467,-490.0,0.00033972,7]
[367094864,1750654304476,-715.68,0.00033972,7]
[367094865,1750654304704,-752.0,0.00033972,7]
[367094866,1750654304714,-490.0,0.00033972,7]
[367094867,1750654304723,-840.28,0.00033972,7]
[367094868,1750654304732,-490.0,0.00033972,7]
[367094869,1750654304741,-490.0,0.00033972,7]
[367094870,1750654304750,-966.39,0.00033972,7]
[367094871,1750654304759,-1121.31,0.00033972,7]
[367094872,1750654304769,-490.0,0.00033972,7]
[367094873,1750654304778,-490.0,0.00033972,7]
[367094874,1750654304787,-837.18,0.00033972,7]
[367094875,1750654304797,-519.27,0.00033972,7]
[367094876,1750654304806,-429.81618198,0.00033972,7]
[367094877,1750654304815,-490.0,0.00033972,7]
[367094878,1750654304824,-1027.42,0.00033972,7]
[367094879,1750654304834,-490.0,0.00033972,7]
[367094880,1750654304843,-821.64,0.00033972,7]
[367094881,1750654304852,-490.0,0.00033972,7]
[367094882,1750654304862,-1429.86,0.00033972,7]
[367094883,1750654304871,-490.0,0.00033972,7]
[367094884,1750654304880,-778.94,0.00033972,7]
[367094885,1750654304889,-212.99967281,0.00033972,7]
[367094886,1750654304898,-490.0,0.00033972,7]
[367094887,1750654304907,-923.75,0.00033972,7]
[367094888,1750654304916,-1414.38,0.00033972,7]
[367094889,1750654304925,-840.56,0.00033972,7]
[367094890,1750654304935,-874.75,0.00033972,7]
[367094891,1750654304944,-1286.76,0.00033972,7]
[367094892,1750654304953,-649.32,0.00033972,7]
[367094893,1750654304963,-490.0,0.00033972,7]
[367094894,1750654304972,-827.4,0.00033972,7]
[367094895,1750654304980,-490.0,0.00033972,7]
[367094896,1750654304990,-1558.33,0.00033972,7]
[367094897,1750654304999,-877.6,0.00033972,7]
[367094898,1750654305009,-699.47,0.00033972,7]
[367094899,1750654305018,-490.0,0.00033972,7]
[367094900,1750654305028,-531.95,0.00033972,7]
[367094901,1750654305037,-1480.2,0.00033972,7]
[367094902,1750654305046,-509.79,0.00033972,7]
[367094903,1750654305055,-1073.47,0.00033972,7]
[367094904,1750654305064,-490.0,0.00033972,7]
[367094905,1750654305073,-490.0,0.00033972,7]
[367094906,1750654305082,-490.0,0.00033972,7]
[367094907,1750654305091,-1316.77,0.00033972,7]
[367094908,1750654305101,-490.0,0.00033972,7]
[367094909,1750654305111,-490.0,0.00033972,7]
[367094910,1750654305122,-490.0,0.00033972,7]
[367094911,1750654305132,-490.0,0.00033972,7]
[367094912,1750654305141,-490.0,0.00033972,7]
[367094913,1750654305151,-545.01610335,0.00033972,2]
[367094914,1750654305160,-786.27,0.00033972,7]
[367094915,1750654305171,-1918.05,0.00033972,7]
[367094916,1750654305180,-660.43,0.00033972,7]
[367094917,1750654305190,-490.0,0.00033972,2]
[367094918,1750654305199,-490.0,0.00033972,7]
[367094919,1750654305211,-922.92,0.00033972,7]
[367094920,1750654305220,-490.0,0.00033972,7]
[367094921,1750654305230,-490.0,0.00033972,7]
[367094922,1750654305239,-490.0,0.00033972,7]
[367094923,1750654305249,-490.0,0.00033972,7]
[367094924,1750654305258,-1499.72,0.00033972,7]
[367094925,1750654305267,-518.81,0.00033972,7]
[367094926,1750654305277,-490.0,0.00033972,7]
[367094927,1750654305286,-490.0,0.00033972,7]
[367094928,1750654305298,-490.0,0.00033972,7]
[367094929,1750654305307,-620.58,0.00033972,7]
[367094930,1750654305316,-490.0,0.00033972,7]
[367094931,1750654305326,-490.0,0.00033972,7]
[367094932,1750654305335,-490.0,0.00033972,7]
[367094933,1750654305344,-668.13,0.00033972,7]
[367094934,1750654305354,-490.0,0.00033972,7]
[367094935,1750654305363,-1231.68,0.00033972,7]
[367094936,1750654305372,-1649.07,0.00033972,7]
[367094937,1750654305382,-262.28427075,0.00033972,7]
[367094938,1750654305391,-490.0,0.00033972,7]